fUSD/lending_fUSD_20240628
["ID","MTS","AMOUNT","RATE_DAILY","PERIOD"]
[330578195,1719581545148,-600.16,0.00022246,3]
[330578196,1719581545157,-500.0,0.00022246,3]
[330578197,1719581545166,-864.42,0.00022246,3]
[330578198,1719581545176,-500.0,0.00022246,3]
[330578199,1719581545185,-500.0,0.00022246,3]
[330578200,1719581545194,-500.0,0.00022246,3]
[330578201,1719581545203,-1150.19,0.00022246,3]
[330578202,1719581545212,-809.83,0.00022246,3]
[330578203,1719581545221,-1789.65,0.00022246,3]
[330578204,1719581545231,-2040.73,0.00022246,3]
[330578205,1719581545240,-915.47,0.00022246,3]
[330578206,1719581545249,-943.45,0.00022246,3]
[330578207,1719581545258,-959.08,0.00022246,3]
[330578208,1719581545268,-588.4,0.00022246,3]
[330578209,1719581545276,-1564.89,0.00022246,3]
[330578210,1719581545286,-1107.4,0.00022246,3]
[330578211,1719581545295,-500.0,0.00022246,3]
[330578212,1719581545304,-1209.21,0.00022246,3]
[330578213,1719581545313,-749.67,0.00022246,3]
[330578214,1719581545322,-543.22896217,0.00022246,3]
[330578215,1719581545332,-565.35,0.00022246,3]
[330578216,1719581545341,-500.0,0.00022246,3]
[330578217,1719581545356,-1028.85,0.00022246,3]
[330578218,1719581545366,-550.95,0.00022246,3]
[330578219,1719581545376,-500.0,0.00022246,3]
[330578220,1719581545386,-528.27,0.00022246,3]
[330578221,1719581545397,-500.0,0.00022246,3]
[330578222,1719581545407,-811.57,0.00022246,3]
[330578223,1719581545417,-738.44,0.00022246,3]
[330578224,1719581545429,-1190.19,0.00022246,3]
[330578225,1719581545442,-1534.77,0.00022246,3]
[330578226,1719581545452,-500.0,0.00022246,3]
[330578227,1719581545462,-500.0,0.00022246,3]
[330578228,1719581545474,-500.0,0.00022246,3]
[330578229,1719581545484,-538.49,0.00022246,3]
[330578230,1719581545494,-953.75,0.00022246,3]
[330578231,1719581545504,-966.78,0.00022246,3]
[330578232,1719581545515,-500.0,0.00022246,3]
[330578233,1719581545525,-500.0,0.00022246,3]
[330578234,1719581545534,-1394.69,0.00022246,3]
[330578235,1719581545544,-500.0,0.00022246,3]
[330578236,1719581545554,-1240.95,0.00022246,3]
[330578237,1719581545563,-500.0,0.00022246,3]
[330578238,1719581545573,-579.58,0.00022246,3]
[330578239,1719581545583,-500.0,0.00022246,3]
[330578240,1719581545592,-1619.45,0.00022246,3]
[330578241,1719581545606,-1557.65,0.00022246,3]
[330578242,1719581545615,-500.0,0.00022246,3]
[330578243,1719581545624,-500.0,0.00022246,3]
[330578244,1719581545634,-500.0,0.00022246,3]
[330578245,1719581545643,-500.0,0.00022246,3]
[330578246,1719581545653,-890.97,0.00022246,3]
[330578247,1719581545662,-500.0,0.00022246,3]
[330578248,1719581545672,-544.49,0.00022246,3]
[330578249,1719581545682,-645.74,0.00022246,3]
[330578250,1719581545692,-1135.0,0.00022246,3]
[330578251,1719581545702,-1024.34,0.00022246,3]
[330578252,1719581545712,-500.0,0.00022246,3]
[330578253,1719581545721,-793.23,0.00022246,3]
[330578254,1719581545732,-500.0,0.00022246,3]
[330578255,1719581545741,-500.0,0.00022246,3]
[330578256,1719581545751,-857.23,0.00022246,3]
[330578257,1719581545761,-500.0,0.00022246,3]
[330578258,1719581545771,-2435.24,0.00022246,3]
[330578259,1719581545781,-1164.19,0.00022246,3]
[330578260,1719581545790,-500.0,0.00022246,3]
[330578261,1719581545800,-573.25,0.00022246,3]
[330578262,1719581545810,-1235.12,0.00022246,3]
[330578263,1719581545820,-500.0,0.00022246,3]
[330578264,1719581545830,-500.0,0.00022246,3]
[330578265,1719581545840,-507.95,0.00022246,3]
[330578266,1719581545852,-500.0,0.00022246,3]
[330578267,1719581545861,-500.0,0.00022246,3]
[330578268,1719581545870,-546.48,0.00022246,3]
[330578269,1719581545879,-500.0,0.00022246,3]
[330578270,1719581545888,-1497.15,0.00022246,3]
[330578271,1719581545898,-1511.59,0.00022246,3]
[330578272,1719581545908,-500.0,0.00022246,3]
[330578273,1719581545918,-667.81,0.00022246,3]
[330578274,1719581545928,-672.89,0.00022246,3]
[330578275,1719581545938,-1025.01,0.00022246,3]
[330578276,1719581545947,-500.0,0.00022246,3]
[330578277,1719581545957,-500.0,0.00022246,3]
[330578278,1719581545967,-1143.19,0.00022246,3]
[330578279,1719581545976,-500.0,0.00022246,3]
[330578280,1719581545986,-500.0,0.00022246,3]
[330578281,1719581545996,-500.0,0.00022246,3]
[330578282,1719581546006,-983.64,0.00022246,3]
[330578283,1719581546015,-500.0,0.00022246,3]
[330578284,1719581546025,-500.0,0.00022246,3]
[330578285,1719581546034,-1110.23,0.00022246,3]
[330578286,1719581546045,-1270.28,0.00022246,3]
[330578287,1719581546054,-500.0,0.00022246,3]
[330578288,1719581546064,-585.88,0.00022246,3]
[330578289,1719581546074,-546.39,0.00022246,3]
[330578290,1719581546084,-500.0,0.00022246,3]
[330578291,1719581546094,-500.0,0.00022246,3]
[330578292,1719581546105,-500.0,0.00022246,3]
[330578293,1719581546116,-780.76,0.00022246,3]
[330578294,1719581546127,-500.0,0.00022246,3]
[330578295,1719581546137,-500.0,0.00022246,3]
[330578296,1719581546147,-500.0,0.00022246,3]
[330578297,1719581546157,-500.0,0.00022246,3]
[330578298,1719581546167,-500.0,0.00022246,3]
[330578299,1719581546176,-500.0,0.00022246,3]
[330578300,1719581546186,-500.0,0.00022246,3]
[330578301,1719581546195,-647.18,0.00022246,3]
[330578302,1719581546205,-962.53,0.00022246,3]
[330578303,1719581546215,-500.0,0.00022246,3]
[330578304,1719581546224,-866.59,0.00022246,3]
[330578305,1719581546234,-500.0,0.00022246,3]
[330578306,1719581546243,-1164.07,0.00022246,3]
[330578307,1719581546253,-568.2,0.00022246,3]
[330578308,1719581546264,-500.0,0.00022246,3]
[330578309,1719581546274,-637.91,0.00022246,3]
[330578310,1719581546283,-509.2,0.00022246,3]
[330578311,1719581546292,-500.0,0.00022246,3]
[330578312,1719581546303,-670.28,0.00022246,3]
[330578313,1719581546313,-1019.47,0.00022246,3]
[330578314,1719581546324,-500.0,0.00022246,3]
[330578315,1719581546334,-500.0,0.00022246,3]
[330578316,1719581546346,-1016.18,0.00022246,3]
[330578317,1719581546355,-500.0,0.00022246,3]
[330578318,1719581546365,-853.39,0.00022246,3]
[330578319,1719581546375,-500.0,0.00022246,3]
[330578320,1719581546384,-500.0,0.00022246,3]
[330578321,1719581546394,-1356.44,0.00022246,3]
[330578322,1719581546403,-3050.86,0.00022246,3]
[330578323,1719581546413,-500.0,0.00022246,3]
[330578324,1719581546423,-585.13818257,0.00022246,3]
[330578325,1719581546438,-500.0,0.00022246,3]
[330578326,1719581546448,-986.96,0.00022246,3]
[330578327,1719581546457,-500.0,0.00022246,3]
[330578328,1719581546467,-200.0,0.00022246,3]
[330578329,1719581546479,-500.0,0.00022246,3]
[330578330,1719581546489,-500.0,0.00022246,3]
[330578331,1719581546499,-796.45,0.00022246,3]
[330578332,1719581546509,-985.06,0.00022246,3]
[330578333,1719581546519,-500.0,0.00022246,3]
[330578334,1719581546528,-500.0,0.00022246,3]
[330578335,1719581546538,-324.86712412,0.00022246,3]
[330578336,1719581546548,-589.69,0.00022246,3]
[330578337,1719581546558,-982.63,0.00022246,3]
[330578338,1719581546567,-333.76928951,0.00022246,3]
[330578339,1719581546576,-500.0,0.00022246,3]
[330578340,1719581546586,-500.0,0.00022246,3]
[330578341,1719581546596,-500.0,0.00022246,3]
[330578342,1719581546607,-500.0,0.00022246,3]
[330578343,1719581546617,-500.0,0.00022246,3]
[330578344,1719581546626,-947.64,0.00022246,3]
[330578345,1719581546636,-500.0,0.00022246,3]
[330578346,1719581546646,-1023.07,0.00022246,3]
[330578347,1719581546656,-1003.72,0.00022246,3]
[330578348,1719581546666,-2689.38,0.00022246,3]
[330578349,1719581546676,-640.9,0.00022246,3]
[330578350,1719581546686,-500.0,0.00022246,3]
[330578351,1719581546696,-902.32,0.00022246,3]
[330578352,1719581546706,-500.0,0.00022246,3]
[330578353,1719581546716,-500.0,0.00022246,3]
[330578354,1719581546726,-500.0,0.00022246,3]
[330578355,1719581546737,-1128.53,0.00022246,3]
[330578356,1719581546747,-500.0,0.00022246,3]
[330578357,1719581546757,-500.0,0.00022246,3]
[330578358,1719581546768,-500.0,0.00022246,3]
[330578359,1719581546778,-392.02203505,0.00022246,3]
[330578360,1719581546789,-939.79,0.00022246,3]
[330578361,1719581546798,-500.0,0.00022246,3]
[330578362,1719581546808,-841.33,0.00022246,3]
[330578363,1719581546817,-1023.86,0.00022246,3]
[330578364,1719581546826,-500.0,0.00022246,3]
[330578365,1719581546836,-500.0,0.00022246,3]
[330578366,1719581546847,-1312.71362859,0.00022246,3]
[330578367,1719581546930,-712.04599,0.00021917,3]
[330578368,1719581546942,-1806.55401,0.00021917,3]
[330578369,1719581546953,-505.97,0.00022191,3]
[330578370,1719581546962,-713.05637141,0.00022246,3]
[330578371,1719581546972,-500.0,0.00022246,3]
[330578372,1719581546981,-1081.13,0.00022246,3]
[330578373,1719581546991,-500.0,0.00022246,3]
[330578374,1719581547001,-500.0,0.00022246,3]
[330578375,1719581547010,-287.54229911,0.00022246,3]
[330578376,1719581547020,-2534.2,0.00022246,3]
[330578377,1719581547029,-545.92,0.00022246,3]
[330578378,1719581547039,-677.91,0.00022246,3]
[330578379,1719581547048,-594.76,0.00022246,3]
[330578380,1719581547058,-983.37,0.00022246,3]
[330578381,1719581547068,-500.0,0.00022246,3]
[330578382,1719581547078,-1660.71,0.00022246,3]
[330578383,1719581547087,-500.0,0.00022246,3]
[330578384,1719581547468,-1312.32,0.00022246,3]
[330578385,1719581547500,-500.0,0.00022246,3]
[330578386,1719581547512,-1407.01,0.00022246,3]
[330578387,1719581547522,-633.26095526,0.00022246,3]
[330578388,1719581547532,-569.28,0.00022246,3]
[330578389,1719581547542,-1230.66,0.00022246,3]
[330578390,1719581547552,-558.19,0.00022246,3]
[330578391,1719581547562,-1083.65,0.00022246,3]
[330578392,1719581547571,-680.97,0.00022246,3]
[330578393,1719581547581,-500.0,0.00022246,3]
[330578394,1719581547591,-806.01,0.00022246,3]
[330578395,1719581547602,-2241.04,0.00022246,3]
[330578396,1719581547612,-1222.11,0.00022246,3]
[330578397,1719581547621,-500.0,0.00022246,3]
[330578398,1719581547631,-2272.28,0.00022246,3]
[330578399,1719581547641,-500.0,0.00022246,3]
[330578400,1719581547651,-1764.98,0.00022246,3]
[330578401,1719581547661,-2235.87,0.00022246,3]
[330578402,1719581547670,-500.0,0.00022246,3]
[330578403,1719581547680,-500.0,0.00022246,3]
[330578404,1719581547689,-500.0,0.00022246,3]
[330578405,1719581547699,-7520.38,0.00022246,3]
[330578406,1719581547709,-500.0,0.00022246,3]
[330578407,1719581547719,-1079.69,0.00022246,3]
[330578408,1719581547728,-1833.12,0.00022246,3]
[330578409,1719581547738,-730.49,0.00022246,3]
[330578410,1719581547748,-500.0,0.00022246,3]
[330578411,1719581547758,-800.68,0.00022246,3]
[330578412,1719581547769,-500.0,0.00022246,3]
[330578413,1719581547779,-1293.07,0.00022246,3]
[330578414,1719581547789,-500.0,0.00022246,3]
[330578415,1719581547800,-1611.83,0.00022246,3]
[330578416,1719581547810,-625.41,0.00022246,3]
[330578417,1719581547820,-1335.03,0.00022246,3]
[330578418,1719581547830,-500.0,0.00022246,3]
[330578419,1719581547840,-500.0,0.00022246,3]
[330578420,1719581547854,-500.0,0.00022246,3]
[330578421,1719581547864,-2017.8,0.00022246,3]
[330578422,1719581547874,-1169.99,0.00022246,3]
[330578423,1719581547886,-559.77,0.00022246,3]
[330578424,1719581547897,-500.0,0.00022246,3]
[330578425,1719581547906,-794.53,0.00022246,3]
[330578426,1719581547916,-500.0,0.00022246,3]
[330578427,1719581547926,-2287.34,0.00022246,3]
[330578428,1719581547935,-500.0,0.00022246,3]
[330578429,1719581547945,-598.26,0.00022246,3]
[330578430,1719581547956,-500.0,0.00022246,3]
[330578431,1719581547967,-848.75,0.00022246,3]
[330578432,1719581547976,-969.34,0.00022246,3]
[330578433,1719581547987,-500.0,0.00022246,3]
[330578434,1719581547997,-721.51,0.00022246,3]
[330578435,1719581548006,-250.0,0.00022246,3]
[330578436,1719581548016,-1520.14,0.00022246,3]
[330578437,1719581548025,-500.0,0.00022246,3]
[330578438,1719581548035,-574.54,0.00022246,3]
[330578439,1719581548045,-753.07,0.00022246,3]
[330578440,1719581548055,-4951.63,0.00022246,3]
[330578441,1719581548065,-1212.49,0.00022246,3]
[330578442,1719581548074,-2156.22,0.00022246,3]
[330578443,1719581548085,-500.0,0.00022246,3]
[330578444,1719581548095,-500.0,0.00022246,3]
[330578445,1719581548105,-500.0,0.00022246,3]
[330578446,1719581548116,-500.0,0.00022246,3]
[330578447,1719581548127,-1938.62,0.00022246,3]
[330578448,1719581548137,-752.65,0.00022246,3]
[330578449,1719581548147,-2619.06,0.00022246,3]
[330578450,1719581548157,-1558.14,0.00022246,3]
[330578451,1719581548167,-595.43,0.00022246,3]
[330578452,1719581548176,-1783.25,0.00022246,3]
[330578453,1719581548186,-739.78,0.00022246,3]
[330578454,1719581548196,-3115.92,0.00022246,3]
[330578455,1719581548206,-500.0,0.00022246,3]
[330578456,1719581548215,-500.0,0.00022246,3]
[330578457,1719581548225,-500.0,0.00022246,3]
[330578458,1719581548235,-500.0,0.00022246,3]
[330578459,1719581548245,-565.44,0.00022246,3]
[330578460,1719581548255,-591.89,0.00022246,3]
[330578461,1719581548265,-998.56,0.00022246,3]
[330578462,1719581548275,-500.0,0.00022246,3]
[330578463,1719581548285,-500.0,0.00022246,3]
[330578464,1719581548295,-500.0,0.00022246,3]
[330578465,1719581548304,-1690.37,0.00022246,3]
[330578466,1719581548314,-1544.97,0.00022246,3]
[330578467,1719581548324,-500.0,0.00022246,3]
[330578468,1719581548333,-744.25,0.00022246,3]
[330578469,1719581548343,-2970.47,0.00022246,3]
[330578470,1719581548355,-1759.06,0.00022246,3]
[330578471,1719581548364,-500.0,0.00022246,3]
[330578472,1719581548374,-1315.66,0.00022246,3]
[330578473,1719581548384,-790.85,0.00022246,3]
[330578474,1719581548393,-930.55,0.00022246,3]
[330578475,1719581548403,-500.0,0.00022246,3]
[330578476,1719581548413,-1189.97,0.00022246,3]
[330578477,1719581548423,-1218.88,0.00022246,3]
[330578478,1719581548439,-1670.71,0.00022246,3]
[330578479,1719581548449,-500.0,0.00022246,2]
[330578480,1719581548459,-1119.51,0.00022246,3]
[330578481,1719581548470,-2631.32,0.00022246,3]
[330578482,1719581548482,-750.26,0.00022246,3]
[330578483,1719581548492,-1504.46,0.00022246,3]
[330578484,1719581548502,-500.0,0.00022246,3]
[330578485,1719581548514,-1597.63,0.00022246,3]
[330578486,1719581548524,-731.52,0.00022246,3]
[330578487,1719581548533,-500.0,0.00022246,3]
[330578488,1719581548543,-1879.32,0.00022246,3]
[330578489,1719581548553,-500.0,0.00022246,3]
[330578490,1719581548563,-1301.36,0.00022246,3]
[330578491,1719581548572,-538.76,0.00022246,3]
[330578492,1719581548581,-500.0,0.00022246,3]
[330578493,1719581548591,-1143.78,0.00022246,3]
[330578494,1719581548603,-500.0,0.00022246,2]
[330578495,1719581548613,-500.0,0.00022246,3]
[330578496,1719581548623,-500.0,0.00022246,3]
[330578497,1719581548634,-500.0,0.00022246,3]
[330578498,1719581548644,-554.8,0.00022246,3]
[330578499,1719581548653,-2901.03,0.00022246,3]
[330578500,1719581548664,-500.0,0.00022246,3]
[330578501,1719581548673,-1548.67,0.00022246,3]
[330578502,1719581548683,-511.8,0.00022246,3]
[330578503,1719581548692,-2485.2,0.00022246,3]
[330578504,1719581548702,-500.0,0.00022246,3]
[330578505,1719581548712,-1224.26,0.00022246,3]
[330578506,1719581548721,-531.92,0.00022246,3]
[330578507,1719581548731,-500.0,0.00022246,3]
[330578508,1719581548740,-1402.6,0.00022246,3]
[330578509,1719581548751,-500.0,0.00022246,3]
[330578510,1719581548760,-1300.34,0.00022246,3]
[330578511,1719581548770,-980.37,0.00022246,3]
[330578512,1719581548779,-3943.37,0.00022246,3]
[330578513,1719581548789,-1173.47,0.00022246,3]
[330578514,1719581548799,-500.0,0.00022246,3]
[330578515,1719581548808,-500.0,0.00022246,3]
[330578516,1719581548818,-500.0,0.00022246,3]
[330578517,1719581548828,-2122.78,0.00022246,3]
[330578518,1719581548838,-500.0,0.00022246,3]
[330578519,1719581548848,-700.74,0.00022246,3]
[330578520,1719581548858,-500.0,0.00022246,3]
[330578521,1719581548868,-2269.54,0.00022246,3]
[330578522,1719581548878,-2694.47,0.00022246,3]
[330578523,1719581548888,-1411.57,0.00022246,3]
[330578524,1719581548897,-1915.65,0.00022246,3]
[330578525,1719581548907,-1443.34,0.00022246,3]
[330578526,1719581548916,-1782.46,0.00022246,3]
[330578527,1719581548926,-2259.69,0.00022246,3]
[330578528,1719581548935,-500.0,0.00022246,3]
[330578529,1719581548945,-1144.19,0.00022246,3]
[330578530,1719581548954,-626.04,0.00022246,3]
[330578531,1719581548964,-500.0,0.00022246,3]
[330578532,1719581548973,-1933.95,0.00022246,3]
[330578533,1719581548984,-500.0,0.00022246,3]
[330578534,1719581548993,-1200.64,0.00022246,3]
[330578535,1719581549003,-500.0,0.00022246,3]
[330578536,1719581549013,-190.1032053,0.00022246,3]
[330578537,1719581549022,-500.0,0.00022246,3]
[330578538,1719581549032,-500.0,0.00022246,3]
[330578539,1719581549042,-1245.79,0.00022246,3]
[330578540,1719581549051,-3679.52,0.00022246,3]
[330578541,1719581549061,-788.2,0.00022246,3]
[330578542,1719581549070,-500.0,0.00022246,3]
[330578543,1719581549080,-1930.1,0.00022246,3]
[330578544,1719581549089,-1520.55,0.00022246,3]
[330578545,1719581549101,-856.29,0.00022246,3]
[330578546,1719581549111,-1084.78,0.00022246,3]
[330578547,1719581549121,-755.66,0.00022246,3]
[330578548,1719581549131,-500.0,0.00022246,3]
[330578549,1719581549142,-939.08,0.00022246,3]
[330578550,1719581549151,-1156.32,0.00022246,3]
[330578551,1719581549161,-500.0,0.00022246,3]
[330578552,1719581549171,-1484.53,0.00022246,3]
[330578553,1719581549181,-819.59,0.00022246,3]
[330578554,1719581549190,-1281.03,0.00022246,3]
[330578555,1719581549200,-1418.89,0.00022246,3]
[330578556,1719581549210,-500.0,0.00022246,3]
[330578557,1719581549220,-500.0,0.00022246,3]
[330578558,1719581549230,-500.0,0.00022246,3]
[330578559,1719581549239,-1394.68,0.00022246,3]
[330578560,1719581549248,-854.39,0.00022246,3]
[330578561,1719581549259,-1289.19,0.00022246,3]
[330578562,1719581549269,-500.0,0.00022246,3]
[330578563,1719581549278,-3187.49,0.00022246,3]
[330578564,1719581549288,-1050.74,0.00022246,3]
[330578565,1719581549298,-1773.83,0.00022246,3]
[330578566,1719581549308,-393.07,0.00022246,3]
[330578567,1719581549318,-1182.56,0.00022246,3]
[330578568,1719581549327,-606.34,0.00022246,3]
[330578569,1719581549337,-4015.68,0.00022246,3]
[330578570,1719581549349,-1207.66,0.00022246,3]
[330578571,1719581549358,-11118.41,0.00022246,3]
[330578572,1719581549367,-500.0,0.00022246,3]
[330578573,1719581549376,-1027.22,0.00022246,3]
[330578574,1719581549386,-909.12,0.00022246,3]
[330578575,1719581549395,-500.0,0.00022246,3]
[330578576,1719581549405,-245.76710982,0.00022246,3]
[330578577,1719581549414,-2109.42,0.00022246,3]
[330578578,1719581549424,-500.0,0.00022246,3]
[330578579,1719581549435,-2224.85,0.00022246,3]
[330578580,1719581549448,-1433.86,0.00022246,3]
[330578581,1719581549457,-500.0,0.00022246,3]
[330578582,1719581549467,-500.0,0.00022246,3]
[330578583,1719581549476,-500.0,0.00022246,3]
[330578584,1719581549486,-500.0,0.00022246,3]
[330578585,1719581549496,-639.12,0.00022246,3]
[330578586,1719581549505,-1039.41,0.00022246,3]
[330578587,1719581549516,-3373.14,0.00022246,3]
[330578588,1719581549526,-525.53,0.00022246,3]
[330578589,1719581549535,-500.0,0.00022246,3]
[330578590,1719581549545,-1382.55,0.00022246,3]
[330578591,1719581549555,-500.0,0.00022246,3]
[330578592,1719581549565,-1766.72,0.00022246,3]
[330578593,1719581549575,-881.88,0.00022246,3]
[330578594,1719581549584,-1305.84,0.00022246,3]
[330578595,1719581549595,-500.0,0.00022246,3]
[330578596,1719581549606,-865.58,0.00022246,3]
[330578597,1719581549615,-1690.78,0.00022246,3]
[330578598,1719581549624,-2429.33,0.00022246,3]
[330578599,1719581549633,-2610.51,0.00022246,3]
[330578600,1719581549643,-500.0,0.00022246,3]
[330578601,1719581549652,-1065.83,0.00022246,3]
[330578602,1719581549662,-3640.69,0.00022246,3]
[330578603,1719581549672,-500.0,0.00022246,3]
[330578604,1719581549682,-500.0,0.00022246,3]
[330578605,1719581549692,-500.0,0.00022246,3]
[330578606,1719581549702,-6031.77,0.00022246,3]
[330578607,1719581549713,-927.31,0.00022246,3]
[330578608,1719581549723,-500.0,0.00022246,3]
[330578609,1719581549732,-500.0,0.00022246,3]
[330578610,1719581549742,-1027.34,0.00022246,3]
[330578611,1719581549752,-992.66,0.00022246,3]
[330578612,1719581549762,-1368.85,0.00022246,3]
[330578613,1719581549771,-242.94221121,0.00022246,3]
[330578614,1719581549780,-659.44,0.00022246,3]
[330578615,1719581549790,-661.85,0.00022246,3]
[330578616,1719581549800,-2995.16,0.00022246,3]
[330578617,1719581549810,-1213.4,0.00022246,3]
[330578618,1719581549821,-1126.79,0.00022246,3]
[330578619,1719581549835,-2342.86,0.00022246,3]
[330578620,1719581549844,-1404.38,0.00022246,3]
[330578621,1719581549856,-554.59,0.00022246,3]
[330578622,1719581549866,-2099.81,0.00022246,3]
[330578623,1719581549876,-500.0,0.00022246,3]
[330578624,1719581549886,-1002.11,0.00022246,3]
[330578625,1719581549896,-3678.51,0.00022246,3]
[330578626,1719581549906,-643.23,0.00022246,3]
[330578627,1719581549915,-786.12,0.00022246,3]
[330578628,1719581549925,-1207.55,0.00022246,3]
[330578629,1719581549935,-845.27,0.00022246,3]
[330578630,1719581549945,-500.0,0.00022246,3]
[330578631,1719581549955,-754.57,0.00022246,3]
[330578632,1719581549964,-611.61410053,0.00022246,3]
[330578633,1719581551130,-927.89970538,0.00018297,2]
[330578634,1719581551140,-151.0,0.00021598,2]
[330578635,1719581551150,-151.0,0.00021817,2]
[330578636,1719581551160,-11.57324835,0.00021917,3]
[330578637,1719581551172,-509.48675165,0.00021917,3]
[330578638,1719581551182,-500.0,0.00021917,3]
[330578639,1719581551191,-500.0,0.00021917,3]
[330578640,1719581551201,-500.0,0.00021917,3]
[330578641,1719581551212,-500.0,0.00021917,3]
[330578642,1719581551223,-500.0,0.00021917,3]
[330578643,1719581551233,-151.0,0.00021917,2]
[330578644,1719581551242,-808.93515839,0.00021972,3]
[330578645,1719581551254,-1709.66484161,0.00021972,3]
[330578646,1719581551264,-500.0,0.00021972,3]
[330578647,1719581551275,-521.06,0.00021972,3]
[330578648,1719581551286,-500.0,0.00021972,3]
[330578649,1719581551295,-479.06558872,0.00021972,3]
[330578650,1719581551879,-20.93441128,0.00021972,3]
[330578651,1719581551888,-500.0,0.00021972,3]
[330578652,1719581551897,-2197.67874032,0.00022027,3]
[330578653,1719581551908,-320.92125968,0.00022027,3]
[330578654,1719581551917,-389.40874032,0.00022027,3]
[330578655,1719581551929,-110.59125968,0.00022027,3]
[330578656,1719581551938,-500.0,0.00022027,3]
[330578657,1719581551947,-521.06,0.00022027,3]
[330578658,1719581551956,-2518.6,0.00022082,3]
[330578659,1719581551965,-44.30790195,0.00022082,3]
[330578660,1719581552002,-260.80872093,0.00021972,3]
[330578661,1719581552014,-239.19127907,0.00021972,3]
[330578662,1719581552023,-500.0,0.00022027,3]
[330578663,1719581552032,-455.69209805,0.00022082,3]
[330578664,1719581552041,-305.01670288,0.00022082,3]
[330578665,1719581552052,-216.04329712,0.00022082,3]
[330578666,1719581552061,-277.04682132,0.00022136,3]
[330578667,1719581552072,-1900.41,0.00022136,3]
[330578668,1719581552083,-1080.10317868,0.00022136,3]
[330578669,1719581552092,-1344.41691562,0.00022136,3]
[330578670,1719581552106,-1174.18308438,0.00022136,3]
[330578671,1719581552116,-500.0,0.00022136,3]
[330578672,1719581552126,-11373.93,0.00022191,3]
[330578673,1719581552136,-1781.44820651,0.00022191,3]
[330578674,1719581552148,-518.90570714,0.00022191,3]
[330578675,1719581552159,-218.24608635,0.00022191,3]
[330578676,1719581552168,-1934.40957301,0.00022191,3]
[330578677,1719581552180,-769.02819339,0.00022191,3]
[330578678,1719581552191,-554.1222336,0.00022191,3]
[330578679,1719581552201,-60.2677664,0.00022191,3]
[330578680,1719581552303,-255.637,0.00022082,3]
[330578681,1719581552314,-244.363,0.00022082,3]
[330578682,1719581552324,-521.06,0.00022136,3]
[330578683,1719581552333,-439.7322336,0.00022191,3]
[330578684,1719581552343,-775.05589947,0.00022246,3]
[330578685,1719581552353,-5337.73,0.00022246,3]
[330578686,1719581552362,-500.0,0.00022246,3]
[330578687,1719581552371,-1014.0,0.00022246,3]
[330578688,1719581552380,-911.43,0.00022246,3]
[330578689,1719581552389,-1466.36,0.00022246,3]
[330578690,1719581552398,-3812.46,0.00022246,3]
[330578691,1719581552407,-1058.74,0.00022246,3]
[330578692,1719581552417,-997.7,0.00022246,3]
[330578693,1719581552428,-2656.89429057,0.00022246,3]
[330578694,1719581552447,-596.048217,0.00022246,3]